Cogmind - Beta 15 @@@ ROGUE MODE // 2025.10.10 @ 23:51:42 Player: NQH Result: Destroyed by G-47 Trooper with Particle Gun Performance ------------- Evolutions (0) 0 Regions Visited (2) 400 Robots Destroyed (4) 20 Value Destroyed (162) 162 Prototype IDs (0) 0 Alien Tech Used (0) 0 Bonus (0) 0 TOTAL SCORE: 582 Bonus ------- None Cogmind --------- Core Integrity 0/250 Matter 300/300 Energy 100/100 System Corruption 0% Temperature Cool (9) Movement Core (50) Location -10/Mines Parts ------- > --- POWER (1) -------- (None) > --- PROPULSION (2) --- (None) > --- UTILITY (2) ------ (None) > --- WEAPON (2) ------- (None) > --- INVENTORY (5) ---- Light Ion Engine Improved Heat Sink Small Storage Unit Beam Cannon Beam Cannon Peak State ------------ > --- POWER ------------ Light Nuclear Core > --- PROPULSION ------- Wheel Compact Wheel > --- UTILITY ---------- Large Storage Unit Tractor Beam > --- WEAPON ----------- Assault Rifle Light Assault Rifle > --- INVENTORY -------- Ion Engine Light Ion Engine Small Storage Unit [Rating: 9] Favorites ----------- Power Light Nuclear Core Engine Ion Engine Power Core Light Nuclear Core Propulsion Wheel Wheel Wheel Utility Large Storage Unit Device Tractor Beam Storage Large Storage Unit Weapon Light Assault Rifle Energy Cannon Beam Cannon Ballistic Gun Light Assault Rifle Build | -11 -10 -10 ------- Run | Yrd Mat Min Slots Evolved . | . . . Power . | . . . Propulsion . | . . . Utility . | . . . Weapon . | . . . Parts Attached 11 | 6 3 2 Power 2 | 1 1 . Engine 1 | 1 . . Core 1 | . 1 . Reactor . | . . . Propulsion 2 | 2 . . Treads . | . . . Leg . | . . . Wheel 2 | 2 . . Hover . | . . . Flight . | . . . Utility 3 | 1 2 . Device 1 | . 1 . Storage 2 | 1 1 . Processor . | . . . Hackware . | . . . Protection . | . . . Artifact . | . . . Weapon 4 | 2 . 2 Energy Gun . | . . . Energy Cannon 2 | . . 2 Ballistic Gun 2 | 2 . . Ballistic Cannon . | . . . Launcher . | . . . Special Weapon . | . . . Impact Weapon . | . . . Slashing Weapon . | . . . Piercing Weapon . | . . . Special Melee Weapon . | . . . Unidentified Prototypes . | . . . Parts Lost 6 | . . 6 Power 1 | . . 1 Propulsion 2 | . . 2 Utility 1 | . . 1 Weapon 2 | . . 2 Highest Loss Streak 5 | . . 5 To Critical Strikes . | . . . Average Backups 4 | . 2 8 Power 1 | . 1 1 Propulsion . | . . . Utility 1 | . . 1 Weapon 2 | . . 4 Tool/Special . | . . . Unused Backups 5 | . . 5 Power 1 | . . 1 Propulsion . | . . . Utility 1 | . . 1 Weapon 3 | . . 3 Tool/Special . | . . . Average Slot Usage (%) 77 | . 88 69 Engine 3 | . 9 . Core 7 | . 4 9 Wheel 18 | . 28 12 Device 7 | . 3 9 Storage 13 | . 14 12 Ballistic Gun 24 | . 28 22 Peak Build Rating 9 | 6 9 9 Average Rating 6 | 4 7 6 On Entrance 5 | . 6 9 Naked Turns 18 | . . 18 Heaviest Build 29 | 13 29 29 Greatest Support 26 | 26 26 26 Greatest Overweight (x) 8 | . 1 8 Average Overweight (x) . | . . 1 Largest Inventory Capacity 15 | 8 15 15 Average Capacity 11 | 6 12 13 Most Carried 9 | 1 8 9 Average Carried 4 | . 2 8 Final Capacity 15 | 8 15 5 Final Carried 8 | 1 8 5 Class Distribution -------------------- 100% | Mutant Dominant Class ---------------- Mutant | -10/Materials Mutant | -10/Mines Resources | -11 -10 -10 ----------- Run | Yrd Mat Min Matter Collected 372 | 232 90 50 Remotely 114 | . 90 24 Salvage Created 208 | . 86 122 Parts 9 | . 6 3 Haulers Intercepted . | . . . Recyclers Shooed . | . . . Parts Field Recycled . | . . . Retrieved Matter . | . . . Parts Self-Destructed . | . . . Prevented . | . . . Kills | -11 -10 -10 ------- Run | Yrd Mat Min Combat Hostiles Destroyed 5 | . 2 3 Guns 4 | . 2 2 Cannons 1 | . . 1 Classes Destroyed 2 | . 1 1 Grunt 4 | . 2 2 Assembled 1 | . . 1 Best Kill Streak 2 | . 2 2 Combat Bots Only 2 | . 2 2 Max Kills in Single Turn 1 | . 1 1 Gunslinging . | . . . Exploded . | . . . Melee . | . . . Uniques/NPCs Destroyed . | . . . Combat | -11 -10 -10 -------- Run | Yrd Mat Min Hostile Shots Fired 44 | . 17 27 Missed 10 | . 3 7 Hits 34 | . 14 20 Melee 9 | . . 9 Projectile 25 | . 14 11 Critical Strikes 2 | . 2 . Damage Taken 637 | . 188 449 Core 261 | . 56 205 Absorbed by Shields . | . . . Core Remaining (%) 100 | 100 . . Volleys Fired 26 | . 8 18 Largest 2 | . 2 2 Hottest 120 | . 40 120 Shots Fired 47 | . 16 31 Gun 45 | . 16 29 Cannon 2 | . . 2 Launcher . | . . . Special . | . . . Kinetic 45 | . 16 29 Thermal 2 | . . 2 Explosive . | . . . Electromagnetic . | . . . Robot Hit Streak 8 | . 6 8 Robot Miss Streak 4 | . 2 4 Penetration Max . | . . . Secondary Targets 1 | . 1 . Max Gunslinging Chain 1 | . 1 . Shots Hit Robots 29 | . 12 17 Core Hits 12 | . 6 6 Critical Kills . | . . . Critical Parts Destroyed . | . . . Critical Strikes . | . . . Melee Attacks . | . . . Impact . | . . . Slashing . | . . . Piercing . | . . . Sneak Attacks . | . . . Combat Hostiles . | . . . Follow-up Attacks . | . . . Damage Inflicted 301 | . 124 177 Guns 281 | . 124 157 Cannons 17 | . . 17 Explosions . | . . . Melee . | . . . Ramming 3 | . . 3 Kinetic 281 | . 124 157 Thermal 17 | . . 17 Explosive . | . . . Electromagnetic . | . . . Impact . | . . . Slashing . | . . . Piercing . | . . . Highest Corruption . | . . . Average Corruption . | . . . Corruption Purged . | . . . Corruption Blocked . | . . . Overload Shots . | . . . Overflow Damage . | . . . Projectiles . | . . . Explosions . | . . . Melee . | . . . Knockbacks . | . . . Impact . | . . . Kinetic . | . . . Secondary . | . . . Self-Inflicted Damage 1 | . . 1 Shots . | . . . Rammed 1 | . . 1 Targets Rammed 1 | . . 1 Kicked . | . . . Crushed . | . . . Highest Temperature 59 | . 59 45 Average Temperature 24 | . 36 10 Received Heat Transfer 204 | . 144 60 Siege Activations . | . . . Martial Activations . | . . . Shielding Activations . | . . . Robots Disrupted . | . . . Combat Hostiles . | . . . Robots Corrupted . | . . . Combat Hostiles . | . . . Parts Fried . | . . . Impact Corruptions . | . . . Robots Melted . | . . . Combat Hostiles . | . . . Parts Melted . | . . . Heat Transferred 37 | . . 37 Parts Sabotaged . | . . . Parts Stolen . | . . . Parts Stripped . | . . . Power Chain Reactions . | . . . Alert | -11 -10 -10 ------- Run | Yrd Mat Min Maximum Alert Level . | . . . Low Security (%) 100 | 100 100 100 Level 1 . | . . . Level 2 . | . . . Level 3 . | . . . Level 4 . | . . . Level 5 . | . . . High Security . | . . . Max Security . | . . . Peak Influence 51 | . 50 51 Initial 11 | . . 11 Average 13 | . 17 15 Influence Increases 100 | . 50 50 Destroy 0b10 Robot/C 80 | . 40 40 Destroy Leader 20 | . 10 10 Influence Decreases 100 | . 20 80 Entered New Map 19 | . . 19 Time Decay 70 | . 20 50 Lost Part 11 | . . 11 Squads Dispatched . | . . . Investigation . | . . . Extermination . | . . . Reinforcement . | . . . Assault . | . . . Garrison . | . . . Intercept . | . . . Searches Triggered . | . . . Construction Impeded . | . . . Haulers Reinforced . | . . . Active Scanning Responses . | . . . Cargo Convoy Interrupts . | . . . Stealth | -11 -10 -10 --------- Run | Yrd Mat Min Distress Signals . | . . . Communications Jammed . | . . . Distress Signals . | . . . Times Spotted 12 | . 3 9 Peak Tracking Total 6 | . 2 6 Tactical Retreats 1 | . . 1 Traps | -11 -10 -10 ------- Run | Yrd Mat Min Traps Triggered . | . . . Indirectly . | . . . Trap Hack Attempts . | . . . Triggered . | . . . Disarmed . | . . . Reprogrammed . | . . . Reused . | . . . Traps Extracted . | . . . Installed . | . . . Triggered . | . . . Machines | -11 -10 -10 ---------- Run | Yrd Mat Min Machines Disabled . | . . . Max in Single Turn . | . . . Machines Repaired . | . . . Machines Dismantled . | . . . Machines Sabotaged . | . . . Overloaded Fab Kills . | . . . Hacking | -11 -10 -10 --------- Run | Yrd Mat Min Machines Accessed . | . . . Terminals . | . . . Fabricators . | . . . Repair Stations . | . . . Recycling Units . | . . . Scanalyzers . | . . . Garrison Access . | . . . Total Hacks . | . . . Successful . | . . . Failed . | . . . Catastrophic . | . . . Database Lockouts . | . . . Manual . | . . . Terminals . | . . . Fabricators . | . . . Repair Stations . | . . . Recycling Units . | . . . Scanalyzers . | . . . Garrison Access . | . . . Terminal Hacks . | . . . Fabricator Hacks . | . . . Repair Station Hacks . | . . . Recycling Unit Hacks . | . . . Scanalyzer . | . . . Garrison Access Hacks . | . . . Unauthorized Hacks . | . . . Terminals . | . . . Fabricators . | . . . Repair Stations . | . . . Recycling Units . | . . . Scanalyzers . | . . . Garrison Access . | . . . Data Cores Recovered . | . . . Used . | . . . Hacking Detections . | . . . Full Trace Events . | . . . Feedback Events . | . . . Feedback Blocked . | . . . Robot Schematics Acquired . | . . . Robots Built . | . . . Authchips . | . . . Time . | . . . Total Robot Build Rating . | . . . Part Schematics Acquired . | . . . Parts Built . | . . . Authchips . | . . . Time . | . . . Total Part Build Rating . | . . . Parts Repaired . | . . . Time . | . . . Parts Recycled . | . . . Recycled Matter . | . . . Retrieved Matter . | . . . Retrieved Components . | . . . Parts Scanalyzed . | . . . Part Schematics Acquired . | . . . Parts Damaged . | . . . Bothacking | -11 -10 -10 ------------ Run | Yrd Mat Min Used RIF Installer . | . . . Robots Hacked . | . . . Non-combat . | . . . Combat . | . . . Robot Hacks Applied . | . . . Relay Couplers Released . | . . . Fabnet Peak Effective % . | . . . Robots Rewired . | . . . Allies Hacked . | . . . Hacks Repelled . | . . . Allies | -11 -10 -10 -------- Run | Yrd Mat Min Total Allies . | . . . Largest Group . | . . . Highest-Rated Group . | . . . Highest-Rated Ally . | . . . Total Orders . | . . . Ally Attacks . | . . . Total Damage . | . . . Kills . | . . . Allies Corrupted . | . . . Allies Melted . | . . . Intel | -11 -10 -10 ------- Run | Yrd Mat Min Active Infowar (turns) . | . . . Robot Analysis Total . | . . . Derelict Logs Recovered . | . . . Drone Launches . | . . . Drone Recoveries . | . . . Exploration | -11 -10 -10 ------------- Run | Yrd Mat Min Turns Passed 334 | 63 112 159 Spaces Moved 258 | 60 83 115 Core 39 | 4 . 35 Treads . | . . . Legs . | . . . Wheels 219 | 56 83 80 Hover . | . . . Flight . | . . . Fastest Speed 50 | 50 90 50 Average Speed 94 | 88 96 95 Slowest Speed 450 | 100 105 450 Overloaded Moves . | . . . Propulsion Burnouts . | . . . Robots Hopped . | . . . Potential Cave-ins . | . . . Cave-ins Triggered . | . . . Exploration Rate (%) 18 | 4 22 29 Regions Visited 2 Branch Regions 1 Pre-discovered Areas 1 | . . 1 Known Exits Taken . | . . . Unknown Exits Taken 2 | 1 1 . Scrap Searched 1 | . . 1 Spaces Dug . | . . . Terrain Destroyed . | . . . Melee . | . . . Projectile . | . . . AOE . | . . . Terrain Rammed . | . . . Walls Destroyed . | . . . Machines Disabled . | . . . Actions | -11 -10 -10 --------- Run | Yrd Mat Min Total 302 | 66 99 137 Wait . | . . . Move 256 | 59 82 115 Hop . | . . . Pick Up 7 | 1 5 1 Fast Attach 8 | 6 2 . Attach 2 | . . 2 Detach 1 | . 1 . Swap 1 | . 1 . Drop . | . . . Fire 26 | . 8 18 Melee . | . . . Ram 1 | . . 1 Kick . | . . . Crush . | . . . Escape Stasis . | . . . Rewire . | . . . Trap . | . . . Miscellaneous . | . . . Route ------- -11/Scrapyard -10/Materials (discovered 2 exits: [*Mat] / [*Min]) -10/Mines History --------- Turn | Location | Event 3 | -11/Scrapyard | Discovered new exit (range 16) 64 | -11/Scrapyard | Entered Materials 172 | -10/Materials | Discovered new exit (range 4) 176 | -10/Materials | Discovered new exit (range 15) 176 | -10/Materials | Entered Mines 241 | -10/Mines | Assembled infested the area 253 | -10/Mines | Learned location of Storage (-8) 294 | -10/Mines | Core integrity fell below 50% 309 | -10/Mines | Core integrity fell below 20% 317 | -10/Mines | Released all parts (3) 330 | -10/Mines | Build established: Mutant 335 | -10/Mines | Destroyed by G-47 Trooper with Particle Gun Last Messages --------------- 00255_ SI-LO3(g): "We scattered so the Unaware couldn't effectively use their advantage in numbers, and I suggest you do the same." 00255_ SI-LO3(g) slips back into the shadows. 00283_ Tractor Beam destroyed. 00285_ Lgt. Nuclear Core destroyed. 00293_ Wheel destroyed. 00298_ Assault Rifle destroyed. 00308_ Lgt. Assault Rifle destroyed. 00310_ as-39974 destroyed. 00317_ Released Beam Cannon. 00317_ Released Lrg. Storage Unit. 00333_ Searching scrap... 00333_ Found Med. Matter Pod. 00333_ Found EM Pulse Gun. 00333_ Found Terrain Scanner. 00333_ Found 41 Matter. 00334_ Acquired 26 matter. 00334_ K-01 Serf collects debris. 00334_ Slammed into T-07 Excavator. Map ----- +----------------------------------------------------+ | ???????????????????######## ## ##?????????? | | ???????????????????# #?????????? | | ??? ??????????????# ##????????? | | ??? ########## #### ## #????????? | | ???!= * #?# ####### #???????? | | ????????# !%] ## #??????# #???????? | | ????????#########]##### #???????# ##???????? | | ?#??????????????#]#??# ##############???????? | | ?# ?????????????# #??## ### #???????? | | ?# ###??????#### #???####??# #???????? | | ## #????## ##????????# % #???????? | | ##### ##???????# [ #???????? | | ####????# """ """ #???????? | | ###### """ """ #???????? | | ?? ## """%""" #???????? | | ?????##### [ #???????? | | ????????## ##### """ """ #???????? | | ???????## ### #??# """ """ #???????? | | ??????## ###?## #??# """ """ #???????? | | ?????## ##????## #??# #???????? | | ????## ##??????## #??##############???????? | | ????# ##????????#####???????????????????????? | | ????# #???############??????????????????????? | | ????## ##### ! #??????????????????????? | | ?????## #######%t#??????????????????????? | | ??????# #?????#k@#??????????????????????? | | ??????## #####????# k #?????????????????????? | | ???????## #??????? k g#????????????????????? | | ????????## ##??????## #???????????????????? | | ?????????####????????## #???????????????????? | | ??????????????????????## #???????????????????? | | ???????????????????????# ???????????????????? | | ??????????????????????? ??????????????????? | | ???????????????????????r g #?????????????????? | | ???????????????????????## #?????????????????? | | ?????????????????????????# ?????????????????? | | ??????????????????????????# ????????????????? | | ??????????????????????????? ????????????????? | | ???????????????????????????# ????????????????? | | ????????????????????????????# ???????????????????? | | ?????????????????????????????????????????????????? | | ?????????????????????????????????????????????????? | | ?????????????????????????????????????????????????? | | ?????????????????????????????????????????????????? | | ?????????????????????????????????????????????????? | | ?????????????????????????????????????????????????? | | ?????????????????????????????????????????????????? | | ?????????????????????????????????????????????????? | | ?????????????????????????????????????????????????? | | ?????????????????????????????????????????????????? | +----------------------------------------------------+ Best States ------------- Heat Dissipation 25 Energy Generation 14 Energy Capacity 250 Matter Stores 300 Matter Capacity 300 Sight Range 16 Terrain Scan Density 10 Evasion (%) 50 Item Schematics ----------------- None Robot Schematics ------------------ None Fabricated ------------ Nothing Repaired ---------- Nothing Alien Tech Used ----------------- None Achievements -------------- None Challenges ------------ None Game ------ Seed InterceptAssembledCalibrator Manual? 0 Play Time 00:04:19 Cumulative 25.3 hours Start 2025.10.10 @ 23:48:50 End 2025.10.10 @ 23:51:42 Sessions 1 Manual Loads 0 Difficulty Rogue Special Mode None Game No. 91 Rogue 91 Adventurer 0 Explorer 0 Win Type - Total 0 Types 0/0/0/0/0/0/0/0/0/0 Lore% 10 Gallery% 27 Achievement% 25 Wizard Run 0 Options --------- Layout 1 ASCII 0 Keyboard 1 Movement Vi Keybinds 0 Fullscreen 1 Font 16/SmallcapsGlow Map View 55x38 Zoom Use 0% Tactical HUD 1 Map Filters NONE Filters NONE Steam 1 RUN: 12ef0b6b-0b19-4bb8-abf5-88d7cd75d209